Cogmind - Beta 13 @@@ ROGUE MODE // 2024.07.31 @ 21:04:35 Player: jimmyl Result: Destroyed by Enhanced Grunt with Neutron Cannon Performance ------------- Evolutions (3) 1500 Regions Visited (11) 2200 Robots Destroyed (67) 335 Value Destroyed (1964) 1964 Prototype IDs (239) 4780 Alien Tech Used (0) 0 Bonus (3600) 3600 TOTAL SCORE: 14379 Bonus ------- Aligned with FarCom 300 Met Data Miner 300 Used Data Conduit 3000 Cogmind --------- Core Integrity 0/700 Matter 222/300 Energy 25/100 System Corruption 0% Temperature Cool (14) Movement Walking (120) Location -7/Data Miner Parts ------- > --- POWER (2) -------- (None) > --- PROPULSION (3) --- Aluminum Leg > --- UTILITY (4) ------ Targeting Computer Targeting Computer Hacking Suite > --- WEAPON (4) ------- Heavy Laser Barrage Gun Chainsword > --- INVENTORY (5) ---- (None) Peak State ------------ > --- POWER ------------ Light Nuclear Core > --- PROPULSION ------- Improved Carbon-fiber Leg Improved Titanium Leg Improved Titanium Leg > --- UTILITY ---------- Targeting Computer Targeting Computer Transmission Jammer Hacking Suite > --- WEAPON ----------- Heavy Laser High-powered Shotgun Gauss Rifle Chainsword > --- INVENTORY -------- Aluminum Leg Particle Gun Heavy Laser Barrage Gun Rocket Launcher [Rating: 40] Favorites ----------- Power Light Ion Engine Engine Light Ion Engine Power Core Light Nuclear Core Propulsion Aluminum Leg Treads Light Treads Leg Aluminum Leg Wheel Armored Huge Wheel Hover Unit Gravmag System Utility Small Storage Unit Device Transmission Jammer Storage Small Storage Unit Processor Targeting Computer Hackware Hacking Suite Weapon Small Laser Energy Gun Small Laser Energy Cannon Advanced Beam Cannon Ballistic Gun Light Assault Rifle Ballistic Cannon Assault Cannon Launcher Heavy Rocket Launcher Slashing Weapon Chainsword Build | -11 -10 -10 -9 -9 -9 -8 -8 -7 -7 -7 -7 ------- Run | Yrd Mat Min Mat Min Exi Min Mat Fac Low Low Dat Slots Evolved 6 | . . . 2 . . . 2 2 . . . Power 1 | . . . . . . . . 1 . . . Propulsion 1 | . . . . . . . . 1 . . . Utility 2 | . . . . . . . 2 . . . . Weapon 2 | . . . 2 . . . . . . . . Parts Attached 57 | . 7 . 12 . 2 1 3 14 3 10 5 Power 6 | . 1 . 2 . . 1 1 . . 1 . Engine 4 | . 1 . 2 . . . 1 . . . . Core 2 | . . . . . . 1 . . . 1 . Reactor . | . . . . . . . . . . . . Propulsion 16 | . 3 . 2 . 2 . . 6 . 2 1 Treads 2 | . 2 . . . . . . . . . . Leg 7 | . 1 . 2 . . . . 1 . 2 1 Wheel 4 | . . . . . 2 . . 2 . . . Hover 3 | . . . . . . . . 3 . . . Flight . | . . . . . . . . . . . . Utility 8 | . 1 . 1 . . . 1 4 1 . . Device 4 | . . . . . . . 1 3 . . . Storage . | . . . . . . . . . . . . Processor 3 | . 1 . 1 . . . . . 1 . . Hackware 1 | . . . . . . . . 1 . . . Protection . | . . . . . . . . . . . . Artifact . | . . . . . . . . . . . . Weapon 27 | . 2 . 7 . . . 1 4 2 7 4 Energy Gun 9 | . 1 . 4 . . . . . . 2 2 Energy Cannon 3 | . . . 2 . . . . 1 . . . Ballistic Gun 7 | . 1 . 1 . . . . 1 . 3 1 Ballistic Cannon 4 | . . . . . . . 1 . 2 1 . Launcher 3 | . . . . . . . . 2 . . 1 Special Weapon . | . . . . . . . . . . . . Impact Weapon . | . . . . . . . . . . . . Slashing Weapon 1 | . . . . . . . . . . 1 . Piercing Weapon . | . . . . . . . . . . . . Special Melee Weapon . | . . . . . . . . . . . . Unidentified Prototypes 2 | . . . 1 . . . 1 . . . . Parts Lost 37 | . 3 1 6 2 . . 1 9 1 5 9 Power 6 | . 1 1 1 1 . . . 1 . . 1 Propulsion 13 | . 2 . 2 1 . . 1 3 . 1 3 Utility 3 | . . . . . . . . 2 . 1 . Weapon 15 | . . . 3 . . . . 3 1 3 5 Highest Loss Streak 9 | . 2 1 6 1 . . 1 9 1 2 9 To Critical Strikes 1 | . . . . . . . . . . 1 . Average Slot Usage (%) 74 | . 89 88 73 76 68 85 66 52 51 77 79 Engine 4 | . 13 2 5 3 . . 4 4 . . . Core 1 | . . . . . . 8 4 . . 6 6 Treads 6 | . 12 28 1 . . . . . . . . Leg 9 | . 11 . 16 17 8 . . 2 7 18 20 Wheel 2 | . . . . . 5 22 18 5 7 1 . Hover 1 | . . . . . . . . 8 . . . Device 2 | . . . . . . . . 8 7 5 . Storage 8 | . 14 14 11 11 11 11 9 4 . . . Processor 10 | . 8 14 11 11 11 11 9 7 7 15 15 Hackware 1 | . . . . . . . . . 7 7 7 Energy Gun 6 | . 9 . 19 11 11 11 6 . . 6 . Energy Cannon 4 | . . . 6 22 22 22 12 . . . . Ballistic Gun 10 | . 18 28 3 . . . . 2 7 9 19 Ballistic Cannon 1 | . . . . . . . 3 4 4 1 . Naked Turns . | . . . . . . . . . . . . Heaviest Build 24 | 12 13 13 17 17 14 19 24 22 12 20 18 Greatest Support 58 | 20 40 40 40 20 26 26 26 38 28 58 58 Greatest Overweight (x) 3 | . 3 . 2 1 1 . 1 2 . . . Average Overweight (x) . | . . . . . . . . . . . . Largest Inventory Capacity 8 | 8 8 8 8 8 8 8 8 8 5 5 5 Average Capacity 7 | 8 8 8 8 8 8 8 8 6 5 5 5 Most Carried 8 | 6 8 8 8 6 7 6 6 8 4 5 5 Average Carried 5 | 6 6 7 4 5 5 5 4 4 2 4 4 Final Capacity 8 | 8 8 8 8 8 8 8 8 5 5 5 5 Final Carried 8 | 6 7 8 5 6 5 5 5 2 3 5 . Class Distribution -------------------- 66% | Mutant 24% | Gunner 5% | Scavenger-Gunner 3% | Skirmisher Dominant Class ---------------- Mutant | -10/Materials Mutant | -10/Mines Scavenger-Gunner | -9/Materials Gunner | -9/Mines Gunner | -9/Exiles Skirmisher | -8/Mines Mutant | -8/Materials Mutant | -7/Factory Mutant | -7/Lower Caves Mutant | -7/Lower Caves Gunner | -7/Data Miner Resources | -11 -10 -10 -9 -9 -9 -8 -8 -7 -7 -7 -7 ----------- Run | Yrd Mat Min Mat Min Exi Min Mat Fac Low Low Dat Matter Collected 1365 | 200 141 63 79 78 . 100 . 148 248 308 . Remotely . | . . . . . . . . . . . . Salvage Created 2106 | . 637 33 334 186 . 93 . 326 188 309 . Parts 125 | . 45 . 20 12 . 4 . 17 8 19 . Haulers Intercepted . | . . . . . . . . . . . . Recyclers Shooed 1 | . . . . . . . . 1 . . . Parts Field Recycled . | . . . . . . . . . . . . Retrieved Matter . | . . . . . . . . . . . . Parts Self-Destructed 25 | . . . . . . . . . 7 18 . Prevented . | . . . . . . . . . . . . Kills | -11 -10 -10 -9 -9 -9 -8 -8 -7 -7 -7 -7 ------- Run | Yrd Mat Min Mat Min Exi Min Mat Fac Low Low Dat Combat Hostiles Destroyed 58 | . 18 3 6 7 . 2 . 6 4 12 . Guns 43 | . 18 3 6 . . . . 3 3 10 . Cannons 12 | . . . . 6 . 2 . 1 1 2 . AOE 2 | . . . . . . . . 2 . . . Classes Destroyed 12 | . 4 1 2 . . . . 3 . 2 . Worker 3 | . . . 1 . . . . 2 . . . Recycler 3 | . . . . . . . . 3 . . . Operator 1 | . . . . . . . . 1 . . . Watcher 5 | . 3 . 2 . . . . . . . . Swarmer 18 | . 6 . . 4 . . . 1 . 7 . Grunt 30 | . 11 . 4 3 . 2 . 4 4 2 . Sentry 2 | . . . 2 . . . . . . . . Hunter 2 | . . . . . . . . 1 . 1 . Subdweller 1 | . 1 . . . . . . . . . . Thief 1 | . . . . . . . . . . 1 . Assembled 3 | . . 3 . . . . . . . . . Mutant 1 | . . . . . . . . . . 1 . Best Kill Streak 9 | . 4 1 2 4 . 2 . 9 3 4 . Combat Bots Only 4 | . 4 1 2 4 . 2 . 4 3 4 . Max Kills in Single Turn 2 | . 1 1 1 1 . 1 . 2 1 1 . Gunslinging . | . . . . . . . . . . . . Exploded 1 | . . . . . . . . 1 . . . Melee . | . . . . . . . . . . . . Uniques/NPCs Destroyed . | . . . . . . . . . . . . Combat | -11 -10 -10 -9 -9 -9 -8 -8 -7 -7 -7 -7 -------- Run | Yrd Mat Min Mat Min Exi Min Mat Fac Low Low Dat Hostile Shots Fired 410 | . 87 13 58 45 . 17 3 68 25 68 26 Missed 107 | . 26 2 21 9 . 3 1 16 8 16 5 Damage Taken 5208 | . 642 237 530 360 . 231 160 981 277 825 965 Core 1189 | . 141 38 142 71 . 68 2 238 34 204 251 Absorbed by Shields . | . . . . . . . . . . . . Core Remaining (%) 64 | 100 . 28 . . . 29 99 . . . . Volleys Fired 235 | . 62 12 46 20 . 9 1 33 13 33 6 Largest 3 | . 2 2 3 3 . 2 2 1 2 3 3 Hottest 178 | . 60 50 176 176 . 136 136 63 76 178 97 Shots Fired 416 | . 124 25 86 30 . 14 2 33 22 66 14 Gun 315 | . 124 25 78 3 . . . 6 13 55 11 Cannon 92 | . . . 8 27 . 14 2 21 9 11 . Launcher 9 | . . . . . . . . 6 . . 3 Special . | . . . . . . . . . . . . Kinetic 224 | . 70 25 31 . . . . 24 22 42 10 Thermal 156 | . 54 . 31 30 . 14 2 . . 24 1 Explosive 9 | . . . . . . . . 6 . . 3 Electromagnetic 27 | . . . 24 . . . . 3 . . . Robot Hit Streak 21 | . 15 5 10 12 . 5 1 8 13 21 5 Robot Miss Streak 6 | . 4 6 3 3 . 1 1 1 2 4 4 Penetration Max . | . . . . . . . . . . . . Secondary Targets 7 | . 4 . 1 . . . . . . 2 . Max Gunslinging Chain 1 | . 1 . 1 . . . . . . 1 . Shots Hit Robots 270 | . 82 13 57 19 . 10 1 19 17 45 7 Core Hits 134 | . 37 7 17 7 . 5 . 18 7 26 10 Critical Kills 1 | . . . . 1 . . . . . . . Critical Parts Destroyed 2 | . . 1 . . . . . . . 1 . Critical Strikes 7 | . . 1 1 1 . . . 1 . 3 . Meltdown 1 | . . . . 1 . . . . . . . Destroy 2 | . . 1 . . . . . . . 1 . Blast 3 | . . . . . . . . 1 . 2 . Corrupt 1 | . . . 1 . . . . . . . . Melee Attacks 1 | . . . . . . . . . . 1 . Impact . | . . . . . . . . . . . . Slashing 1 | . . . . . . . . . . 1 . Piercing . | . . . . . . . . . . . . Sneak Attacks . | . . . . . . . . . . . . Combat Hostiles . | . . . . . . . . . . . . Follow-up Attacks . | . . . . . . . . . . . . Damage Inflicted 5574 | . 827 177 872 394 . 227 26 1289 350 866 546 Guns 2854 | . 827 174 683 34 . . . 104 232 684 116 Cannons 1213 | . . . 82 351 . 226 21 233 118 182 . Explosions 1485 | . . . 107 . . . . 948 . . 430 Melee . | . . . . . . . . . . . . Ramming 22 | . . 3 . 9 . 1 5 4 . . . Kinetic 2193 | . 390 174 295 . . . . 256 350 624 104 Thermal 1681 | . 437 . 358 385 . 226 21 . . 242 12 Explosive 1378 | . . . . . . . . 948 . . 430 Electromagnetic 300 | . . . 219 . . . . 81 . . . Impact . | . . . . . . . . . . . . Slashing . | . . . . . . . . . . . . Piercing . | . . . . . . . . . . . . Highest Corruption 3 | . 3 3 . . . . 1 . . . . Average Corruption 2 | . 2 3 . . . . 1 . . . . Corruption Purged . | . . . . . . . . . . . . Corruption Blocked . | . . . . . . . . . . . . Effects 25 | . 11 14 . . . . . . . . . Message Errors 6 | . 5 1 . . . . . . . . . Matter Fused 5 | . . 5 . . . . . . . . . Heat Flow Errors 6 | . 3 3 . . . . . . . . . Energy Discharges 2 | . 1 1 . . . . . . . . . Data Loss (minor) 2 | . . 2 . . . . . . . . . Data Loss (major) 1 | . . 1 . . . . . . . . . Misfires 2 | . 1 1 . . . . . . . . . Weapon Failures 1 | . 1 . . . . . . . . . . Overload Shots . | . . . . . . . . . . . . Overflow Damage 89 | . . . 11 . . . . 78 . . . Projectiles 11 | . . . 11 . . . . . . . . Explosions 78 | . . . . . . . . 78 . . . Melee . | . . . . . . . . . . . . Knockbacks 8 | . . . . . . . . 3 2 3 . Impact . | . . . . . . . . . . . . Kinetic 8 | . . . . . . . . 3 2 3 . Secondary . | . . . . . . . . . . . . Self-Inflicted Damage 136 | . . . 34 . . . 2 100 . . . Shots 5 | . . . 1 . . . . 4 . . . Rammed 5 | . . 1 1 . . 1 1 1 . . . Targets Rammed 10 | . . 1 1 5 . 1 1 1 . . . Kicked 5 | . . . . 5 . . . . . . . Crushed . | . . . . . . . . . . . . Highest Temperature 441 | . 209 260 133 441 . 345 63 36 27 198 14 Average Temperature 79 | . 33 89 48 199 . 189 36 17 14 80 4 Received Heat Transfer 1431 | . 168 36 255 99 . 126 18 432 189 108 . Effects 4 | . . . . 3 . 1 . . . . . Shutdowns 1 | . . . . 1 . . . . . . . Interference 1 | . . . . 1 . . . . . . . Matter Decay 2 | . . . . 1 . 1 . . . . . Siege Activations . | . . . . . . . . . . . . Robots Corrupted . | . . . . . . . . . . . . Combat Hostiles . | . . . . . . . . . . . . Parts Fried 3 | . . . 2 . . . . 1 . . . Impact Corruptions . | . . . . . . . . . . . . Robots Melted 1 | . . . . 1 . . . . . . . Combat Hostiles 1 | . . . . 1 . . . . . . . Parts Melted 1 | . . . 1 . . . . . . . . Heat Transferred 3289 | . 1000 . 623 704 . 407 37 . . 481 37 Parts Sabotaged . | . . . . . . . . . . . . Parts Stolen 2 | . . . . . . . . . . 2 . Parts Stripped . | . . . . . . . . . . . . Power Chain Reactions 2 | . . . 2 . . . . . . . . Alert | -11 -10 -10 -9 -9 -9 -8 -8 -7 -7 -7 -7 ------- Run | Yrd Mat Min Mat Min Exi Min Mat Fac Low Low Dat Peak Influence 380 | . 380 83 213 162 . 40 15 159 . . . Initial 81 | . . 81 . 7 . . 15 2 . . . Average 96 | . 202 34 75 86 . 34 14 47 . . . Maximum Alert Level 1 | . 1 . 1 . . . . . . . . Low Security (%) 81 | 100 37 100 97 100 . 100 100 100 . . . Level 1 18 | . 62 . 2 . . . . . . . . Level 2 . | . . . . . . . . . . . . Level 3 . | . . . . . . . . . . . . Level 4 . | . . . . . . . . . . . . Level 5 . | . . . . . . . . . . . . High Security . | . . . . . . . . . . . . Max Security . | . . . . . . . . . . . . Squads Dispatched 10 | . 4 . 2 . . . 2 2 . . . Investigation 4 | . 2 . . . . . 1 1 . . . Extermination . | . . . . . . . . . . . . Reinforcement 6 | . 2 . 2 . . . 1 1 . . . Assault . | . . . . . . . . . . . . Garrison . | . . . . . . . . . . . . Intercept . | . . . . . . . . . . . . Searches Triggered . | . . . . . . . . . . . . Construction Impeded . | . . . . . . . . . . . . Haulers Reinforced . | . . . . . . . . . . . . Active Scanning Responses . | . . . . . . . . . . . . Cargo Convoy Interrupts . | . . . . . . . . . . . . Stealth | -11 -10 -10 -9 -9 -9 -8 -8 -7 -7 -7 -7 --------- Run | Yrd Mat Min Mat Min Exi Min Mat Fac Low Low Dat Distress Signals 5 | . 3 . . . . . . 2 . . . Communications Jammed 7 | . . . . . . . . 7 . . . Distress Signals 7 | . . . . . . . . 7 . . . Times Spotted 102 | . 30 5 14 7 . 3 4 15 5 15 4 Peak Tracking Total 5 | . 5 3 4 4 . 3 3 5 4 4 4 Tactical Retreats 5 | . 3 . . . . . . 1 1 . . Traps | -11 -10 -10 -9 -9 -9 -8 -8 -7 -7 -7 -7 ------- Run | Yrd Mat Min Mat Min Exi Min Mat Fac Low Low Dat Traps Triggered 7 | . 5 . . . . . 2 . . . . Indirectly . | . . . . . . . . . . . . Trap Hack Attempts . | . . . . . . . . . . . . Triggered . | . . . . . . . . . . . . Disarmed . | . . . . . . . . . . . . Reprogrammed . | . . . . . . . . . . . . Reused . | . . . . . . . . . . . . Traps Extracted . | . . . . . . . . . . . . Installed . | . . . . . . . . . . . . Triggered . | . . . . . . . . . . . . Machines | -11 -10 -10 -9 -9 -9 -8 -8 -7 -7 -7 -7 ---------- Run | Yrd Mat Min Mat Min Exi Min Mat Fac Low Low Dat Machines Disabled 2 | . . . 1 . . . . . . 1 . Max in Single Turn 1 | . . . 1 . . . . . . 1 . Machines Repaired . | . . . . . . . . . . . . Machines Dismantled . | . . . . . . . . . . . . Machines Sabotaged . | . . . . . . . . . . . . Overloaded Fab Kills . | . . . . . . . . . . . . Hacking | -11 -10 -10 -9 -9 -9 -8 -8 -7 -7 -7 -7 --------- Run | Yrd Mat Min Mat Min Exi Min Mat Fac Low Low Dat Machines Accessed 7 | . 1 . . . 1 . . 2 . . 3 Terminals 3 | . 1 . . . . . . 2 . . . Fabricators . | . . . . . . . . . . . . Repair Stations . | . . . . . . . . . . . . Recycling Units . | . . . . . . . . . . . . Scanalyzers . | . . . . . . . . . . . . Garrison Access . | . . . . . . . . . . . . Total Hacks 29 | . 2 . . . 1 . . 6 . . 20 Successful 22 | . . . . . 1 . . 1 . . 20 Failed 7 | . 2 . . . . . . 5 . . . Catastrophic 2 | . 2 . . . . . . . . . . Database Lockouts . | . . . . . . . . . . . . Manual 3 | . 2 . . . 1 . . . . . . Terminals 8 | . 2 . . . . . . 6 . . . Fabricators . | . . . . . . . . . . . . Repair Stations . | . . . . . . . . . . . . Recycling Units . | . . . . . . . . . . . . Scanalyzers . | . . . . . . . . . . . . Garrison Access . | . . . . . . . . . . . . Terminal Hacks 22 | . . . . . 1 . . 1 . . 20 Record 1 | . . . . . . . . . . . 1 Part Schematic 11 | . . . . . . . . . . . 11 Robot Schematic 5 | . . . . . . . . . . . 5 Prototype ID Bank 3 | . . . . . . . . . . . 3 Hauler Manifests 1 | . . . . . . . . 1 . . . Derelict Proto ID Bank 1 | . . . . . 1 . . . . . . Fabricator Hacks . | . . . . . . . . . . . . Repair Station Hacks . | . . . . . . . . . . . . Recycling Unit Hacks . | . . . . . . . . . . . . Scanalyzer . | . . . . . . . . . . . . Garrison Access Hacks . | . . . . . . . . . . . . Unauthorized Hacks . | . . . . . . . . . . . . Terminals . | . . . . . . . . . . . . Fabricators . | . . . . . . . . . . . . Repair Stations . | . . . . . . . . . . . . Recycling Units . | . . . . . . . . . . . . Scanalyzers . | . . . . . . . . . . . . Garrison Access . | . . . . . . . . . . . . Data Cores Recovered 1 | . . . . . . . . 1 . . . Used . | . . . . . . . . . . . . Hacking Detections 3 | . 1 . . . . . . 2 . . . Full Trace Events 1 | . . . . . . . . 1 . . . Feedback Events . | . . . . . . . . . . . . Feedback Blocked . | . . . . . . . . . . . . Robot Schematics Acquired 5 | . . . . . . . . . . . 5 Robots Built . | . . . . . . . . . . . . Authchips . | . . . . . . . . . . . . Time . | . . . . . . . . . . . . Total Robot Build Rating . | . . . . . . . . . . . . Part Schematics Acquired 11 | . . . . . . . . . . . 11 Parts Built . | . . . . . . . . . . . . Authchips . | . . . . . . . . . . . . Time . | . . . . . . . . . . . . Total Part Build Rating . | . . . . . . . . . . . . Parts Repaired . | . . . . . . . . . . . . Time . | . . . . . . . . . . . . Parts Recycled . | . . . . . . . . . . . . Recycled Matter . | . . . . . . . . . . . . Retrieved Matter . | . . . . . . . . . . . . Retrieved Components . | . . . . . . . . . . . . Parts Scanalyzed . | . . . . . . . . . . . . Part Schematics Acquired . | . . . . . . . . . . . . Parts Damaged . | . . . . . . . . . . . . Bothacking | -11 -10 -10 -9 -9 -9 -8 -8 -7 -7 -7 -7 ------------ Run | Yrd Mat Min Mat Min Exi Min Mat Fac Low Low Dat Used RIF Installer . | . . . . . . . . . . . . Robots Hacked . | . . . . . . . . . . . . Non-combat . | . . . . . . . . . . . . Combat . | . . . . . . . . . . . . Robot Hacks Applied . | . . . . . . . . . . . . Relay Couplers Released . | . . . . . . . . . . . . Fabnet Peak Effective % . | . . . . . . . . . . . . Robots Rewired . | . . . . . . . . . . . . Allies Hacked . | . . . . . . . . . . . . Hacks Repelled . | . . . . . . . . . . . . Allies | -11 -10 -10 -9 -9 -9 -8 -8 -7 -7 -7 -7 -------- Run | Yrd Mat Min Mat Min Exi Min Mat Fac Low Low Dat Total Allies 1 | . . 1 . . . . . . . . . Largest Group 1 | . . 1 . . . . . . . . . Highest-Rated Group 31 | . . 31 . . . . . . . . . Highest-Rated Ally 31 | . . 31 . . . . . . . . . Total Orders 1 | . . . . . . . . 1 . . . EXPLORE 1 | . . . . . . . . 1 . . . Ally Attacks 10 | . . 10 . . . . . . . . . Total Damage 190 | . . 190 . . . . . . . . . Kills 2 | . . 2 . . . . . . . . . Allies Corrupted . | . . . . . . . . . . . . Allies Melted . | . . . . . . . . . . . . Intel | -11 -10 -10 -9 -9 -9 -8 -8 -7 -7 -7 -7 ------- Run | Yrd Mat Min Mat Min Exi Min Mat Fac Low Low Dat Robot Analysis Total 134 | . . . . . . . . . . . 134 Derelict Logs Recovered 3 | . . 1 . . . . . . 1 1 . Drone Launches 1 | . . . . . . . . 1 . . . Drone Recoveries . | . . . . . . . . . . . . Exploration | -11 -10 -10 -9 -9 -9 -8 -8 -7 -7 -7 -7 ------------- Run | Yrd Mat Min Mat Min Exi Min Mat Fac Low Low Dat Turns Passed 5342 | 2 1113 762 597 353 365 123 120 728 428 641 110 Spaces Moved 3287 | 2 544 436 321 200 210 106 111 487 376 423 71 Core 38 | . 3 . 31 . . . . . . . 4 Treads 712 | . 266 436 10 . . . . . . . . Legs 1267 | 2 275 . 280 200 147 . . . . 296 67 Wheels 1112 | . . . . . 63 106 111 329 376 127 . Hover 158 | . . . . . . . . 158 . . . Flight . | . . . . . . . . . . . . Fastest Speed 50 | 120 120 160 120 120 90 90 90 52 100 100 50 Average Speed 125 | 120 153 160 124 142 160 90 90 82 100 118 121 Slowest Speed 200 | 120 200 160 160 190 190 90 95 190 100 126 126 Overloaded Moves . | . . . . . . . . . . . . Propulsion Burnouts . | . . . . . . . . . . . . Robots Hopped . | . . . . . . . . . . . . Cave-ins Triggered . | . . . . . . . . . . . . Exploration Rate (%) 51 | 2 97 92 26 59 60 23 16 53 57 56 77 Regions Visited 11 Branch Regions 7 Pre-discovered Areas 25 | . . 1 . . . . . . . . 24 Known Exits Taken 3 | . 1 1 . . . . . . 1 . . Unknown Exits Taken 8 | 1 . . 1 1 1 1 1 1 . 1 . Scrap Searched 6 | . . . . 1 . 1 . . 2 2 . Spaces Dug . | . . . . . . . . . . . . Terrain Destroyed 62 | . 2 3 3 . . . . 31 3 . 20 Melee . | . . . . . . . . . . . . Projectile 9 | . 2 3 . . . . . 1 3 . . AOE 53 | . . . 3 . . . . 30 . . 20 Terrain Rammed . | . . . . . . . . . . . . Walls Destroyed . | . . . . . . . . . . . . Machines Disabled . | . . . . . . . . . . . . Actions | -11 -10 -10 -9 -9 -9 -8 -8 -7 -7 -7 -7 --------- Run | Yrd Mat Min Mat Min Exi Min Mat Fac Low Low Dat Total 4142 | 1 708 478 452 241 239 119 132 780 406 501 85 Wait 494 | . 88 29 60 16 26 . 7 230 11 24 3 Move 3277 | 1 543 435 320 199 209 105 111 486 375 422 71 Hop . | . . . . . . . . . . . . Pick Up 49 | . 7 1 9 1 1 2 4 10 4 10 . Fast Attach 7 | . 1 . . . . . . 3 . 3 . Attach 50 | . 6 . 12 . 2 1 3 11 3 7 5 Detach 2 | . . . . . . . . 2 . . . Swap . | . . . . . . . . . . . . Drop 18 | . 1 . 4 . 1 1 6 4 . 1 . Fire 235 | . 62 12 46 20 . 9 1 33 13 33 6 Melee 1 | . . . . . . . . . . 1 . Ram 3 | . . . 1 . . 1 . 1 . . . Kick 5 | . . . . 5 . . . . . . . Crush 1 | . . 1 . . . . . . . . . Escape Stasis . | . . . . . . . . . . . . Rewire . | . . . . . . . . . . . . Trap . | . . . . . . . . . . . . Miscellaneous . | . . . . . . . . . . . . Route ------- -11/Scrapyard -10/Materials (discovered 6 exits: *Mat x3 / *Min x2 / [*Sub]) -10/Mines (discovered 2 exits: *Mat x2) -9/Materials -9/Mines (discovered 2 exits: *Mat / *Exi) -9/Exiles -8/Mines -8/Materials -7/Factory (discovered 4 exits: [*Fac x3] / [*Low]) -7/Lower Caves -7/Lower Caves -7/Data Miner (discovered 1 exit: [*Pro]) History --------- Turn | Location | Event 1 | -11/Scrapyard | Discovered new exit (range 1) 3 | -11/Scrapyard | Entered Materials 223 | -10/Materials | Discovered new exit (range 15) 305 | -10/Materials | Build established: Mutant 514 | -10/Materials | Discovered new exit (range 8) 580 | -10/Materials | Discovered new exit (range 10) 603 | -10/Materials | Derelicts attacked the area 799 | -10/Materials | Discovered new exit (range 7) 829 | -10/Materials | Discovered new exit (range 3) 952 | -10/Materials | Core integrity fell below 50% 1016 | -10/Materials | Discovered new exit (range 7) 1112 | -10/Materials | Identified exit to Mines 1116 | -10/Materials | Entered Mines 1117 | -10/Mines | Assembled infested the area 1122 | -10/Mines | Assisted by a Guerilla fighting off Assembled 1156 | -10/Mines | Met a Derelict bent on vengeance 1189 | -10/Mines | Discovered new exit (range 7) 1192 | -10/Mines | Received a Mining Laser from a helpful Derelict 1197 | -10/Mines | Identified exit to Materials 1560 | -10/Mines | Learned location of Zion (-6) 1707 | -10/Mines | Found a damaged Exp. Sensor Array with a note attached 1710 | -10/Mines | Found Prototype Device 1807 | -10/Mines | Discovered exit to Materials (range 6) 1878 | -10/Mines | Entered Materials 1878 | -9/Materials | Evolved 2 slots: Weapon x2 1980 | -9/Materials | Lost 6 parts (1p2n3w) 2347 | -9/Materials | Build established: Scavenger-Gunner 2454 | -9/Materials | Discovered new exit (range 15) 2475 | -9/Materials | Entered Mines 2505 | -9/Mines | Received a Rocket Launcher from a helpful Derelict 2659 | -9/Mines | Build established: Gunner 2679 | -9/Mines | Discovered new exit (range 14) 2694 | -9/Mines | Core integrity fell below 50% 2821 | -9/Mines | Deemed a non-threat by the Exiles lab entrance 2821 | -9/Mines | Discovered new exit (range 5) 2828 | -9/Mines | Entered Exiles 2872 | -9/Exiles | Met 8R-AWN 2908 | -9/Exiles | Met EX-HEX 2961 | -9/Exiles | Met EX-BIN 2984 | -9/Exiles | Aligned with FarCom system 2986 | -9/Exiles | Given EX-Vault access code 3030 | -9/Exiles | Opened EX-Vault 3043 | -9/Exiles | Found Supersonic Drone Bay 3086 | -9/Exiles | Warned to stay clear of 0b10 Research branches 3108 | -9/Exiles | Exiles lab attacked by MAIN.C 3185 | -9/Exiles | Discovered new exit (range 10) 3193 | -9/Exiles | Left Exiles lab with Supersonic Drone Bay 3193 | -9/Exiles | Entered Mines 3311 | -8/Mines | Discovered new exit (range 6) 3316 | -8/Mines | Entered Materials 3316 | -8/Materials | Evolved 2 slots: Utility x2 3319 | -8/Materials | Identified Exp. Sensor Array 3431 | -8/Materials | Discovered new exit (range 7) 3436 | -8/Materials | Entered Factory 3436 | -7/Factory | Evolved 2 slots: Power x1, Propulsion x1 3452 | -7/Factory | Discovered new exit (range 105) 3454 | -7/Factory | Discovered new exit (range 154) 3462 | -7/Factory | Discovered new exit (range 118) 3466 | -7/Factory | Discovered new exit (range 187) 3674 | -7/Factory | Build established: Mutant 3966 | -7/Factory | Lost 9 parts (1p3n2u3w) 4164 | -7/Factory | Entered Lower Caves 4345 | -7/Lower Caves | Identified exit to Lower Caves 4563 | -7/Lower Caves | Encountered a Warlord checkpoint 4592 | -7/Lower Caves | Entered another Lower Caves area 4605 | -7/Lower Caves | Encountered a Warlord checkpoint 4747 | -7/Lower Caves | Core integrity fell below 50% 4906 | -7/Lower Caves | Attacked by a delusional Derelict stockpiling parts 5197 | -7/Lower Caves | Discovered new exit (range 14) 5233 | -7/Lower Caves | Entered Data Miner 5233 | -7/Data Miner | Discovered new exit (range 6) 5257 | -7/Data Miner | Met Data Miner 5281 | -7/Data Miner | Acquired the access code to Warlord's prototype stash 5303 | -7/Data Miner | Received God Mode back door access code from Data Miner 5318 | -7/Data Miner | Interfaced with the Data Conduit 5335 | -7/Data Miner | Core integrity fell below 20% 5343 | -7/Data Miner | Destroyed by Enhanced Grunt with Neutron Cannon Last Messages --------------- 05318_ Interfacing with system... Downloaded 134 analysis records. Downloaded 732 prototype IDs. Downloaded central machine database. Downloaded 24 destinations. Downloaded encryption format records. Connection remotely terminated. [Achievement: Unlimited Data] 05324_ Slug penetrates Data Conduit. 05325_ Hpw. Shotgun destroyed. 05328_ Slug penetrates Enhanced Grunt. 05329_ Gauss Rifle destroyed. 05329_ Imp. Titanium Leg destroyed. 05332_ Imp. Carbon-fiber Leg destroyed. 05334_ Minigun destroyed. 05336_ Imp. Titanium Leg destroyed. 05336_ Rocket Launcher destroyed. 05336_ Lgt. Nuclear Core destroyed. 05338_ The unstable cave ceiling collapses. 05341_ Field Laser destroyed. Map ----- +----------------------------------------------------+ | | | | | | | | | | | | | | | | | | | | | | | | | | | | | | | ?????????????????????????????????????????? | | ?????????????????????????????????????????? | | ?????????????????????????????????????????? | | ?????????????????????????#?###???????????? | | ??????????????????????## # #???????####? | | ??????################ ?????### #? | | ?????"""""""""""""""# # #????## #? | | ????"""""""" "" " # # #### < ##? | | ????""""""" g ## | | ????"""""" g | | ???""""""" @ g | | ???"""""" g | | ???""""""" | | ????"""""" """"""""""""""""## | | ????""""""" """"###############? | | ????""""""" """""###??????????????? | | ?????"""""""" "#####????????????????? | | ??????######"## "#????????????????????? | | ???????????#"### "#????????????????????? | | ???????????#"### "#????????????????????? | | ???????????#"## "#????????????????????? | | ???????????#"## "#????????????????????? | | ?????????????# "#????????????????????? | | ?????????????### "#????????????????????? | | ???????????????# "##???????????????????? | | ??????????????## ""#???????????????????? | | ???????????#?## ""#???????????????????? | | ?????????"##"#"X ""#???????????????????? | | ?????????"""""" "####????????????????? | | ?????????#""""" X"""""????????????????? | | ?????????###"#"X "##"#????????????????? | | ???????????#?## X""""#????????????????? | | ??????????????## "##"#????????????????? | | ???????????????#######???????????????????? | | ?????????????????????????????????????????? | +----------------------------------------------------+ Best States ------------- Heat Dissipation 44 Energy Generation 16 Energy Capacity 290 Matter Stores 300 Matter Capacity 300 Sight Range 16 Robot Scan Range 20 Terrain Scan Density 10 Jamming Range 12 Evasion (%) 55 Targeting Accuracy 10 Recoil Reduction 2 Offensive Hacking 10 Item Schematics ----------------- Imp. Launcher Guidance Computer | -7/Data Miner | Free Imp. Proton Missile Launcher | -7/Data Miner | Free KE Penetrator | -7/Data Miner | Free Adv. Hacking Suite | -7/Data Miner | Free Railgun | -7/Data Miner | Free Imp. Lightning Gun | -7/Data Miner | Free Gravity Neutralizer | -7/Data Miner | Free Field Propulsion Drive | -7/Data Miner | Free Cld. Cesium-ion Thruster | -7/Data Miner | Free Lgt. Regenerative Plating | -7/Data Miner | Free Combat Drone Bay | -7/Data Miner | Free Robot Schematics ------------------ Y-64 Sentinel | -7/Data Miner | Free H-55 Commando | -7/Data Miner | Free Y-54 Guardian | -7/Data Miner | Free B-48 Gladiator | -7/Data Miner | Free M-14 Sweeper | -7/Data Miner | Free Fabricated ------------ Nothing Alien Tech Used ----------------- None Achievements -------------- Unlimited Data Challenges ------------ None Game ------ Seed DisposableShrapnelCharge Manual? 0 Play Time 00:32:38 Cumulative 82.2 hours Start 2024.07.31 @ 20:33:36 End 2024.07.31 @ 21:04:35 Sessions 1 Manual Loads 0 Difficulty Rogue Special Mode None Game No. 142 Rogue 142 Adventurer 0 Explorer 0 Win Type - Total 0 Types 0/0/0/0/0/0/0/0/0 Lore% 51 Gallery% 60 Achievement% 45 Wizard Run 0 Options --------- Layout 1 ASCII 0 Keyboard 0 Movement Mouse Keybinds 0 Fullscreen 2 Font 20/SmallcapsGlow Map View 54x42 Zoom Use 0% Tactical HUD 1 Map Filters NONE Filters NONE Steam 0 RUN: 0eb52cbe-af1f-4c0e-8679-2a51c5a42e01